Cogmind - Beta 14 *** ADVENTURER MODE // 2025.05.04 @ 13:27:15 // Winter2019/RPGLIKE Player: Jack Result: Core destroyed Performance ------------- Evolutions (0) 0 Regions Visited (3) 600 Robots Destroyed (20) 100 Value Destroyed (552) 552 Prototype IDs (0) 0 Alien Tech Used (0) 0 Bonus (-547) -547 TOTAL SCORE: 705 Bonus ------- Follower Combat Kills 25 Friendly Fire -572 Cogmind --------- Core Integrity 0/1000 Matter 77/300 Energy 125/125 System Corruption 2% Temperature Cool (0) Movement Hovering (56) Location -10/Exiles Parts ------- > --- POWER (1) -------- Light Ion Engine > --- PROPULSION (3) --- Hover Unit Hover Unit Backup Propulsion III > --- UTILITY (4) ------ Backup Plating III > --- WEAPON (2) ------- Heavy Assault Rifle Light Cannon > --- INVENTORY (2) ---- Rocket Launcher Peak State ------------ > --- POWER ------------ Light Ion Engine > --- PROPULSION ------- Hover Unit Hover Unit Backup Propulsion III > --- UTILITY ---------- Backup Plating III Light Armor Plating Light Armor Plating > --- WEAPON ----------- Heavy Assault Rifle Rocket Launcher > --- INVENTORY -------- Protomatter Light Cannon [Rating: 15] Favorites ----------- Power Light Ion Engine Engine Light Ion Engine Propulsion Hover Unit Leg Aluminum Leg Hover Unit Hover Unit Utility Backup Plating III Protection Backup Plating III Weapon Assault Rifle Energy Gun Medium Laser Ballistic Gun Assault Rifle Ballistic Cannon Light Cannon Launcher Rocket Launcher Build | -11 -10 -10 -10 ------- Run | Yrd Mat Min Exi Slots Evolved 6 | 4 . 2 . Power . | . . . . Propulsion 2 | 1 . 1 . Utility 3 | 3 . . . Weapon 1 | . . 1 . Parts Attached 26 | 6 6 9 5 Power 1 | 1 . . . Engine 1 | 1 . . . Core . | . . . . Reactor . | . . . . Propulsion 5 | 2 2 1 . Treads . | . . . . Leg 2 | 2 . . . Wheel . | . . . . Hover 3 | . 2 1 . Flight . | . . . . Utility 10 | . 2 5 3 Device . | . . . . Storage . | . . . . Processor . | . . . . Hackware . | . . . . Protection 10 | . 2 5 3 Artifact . | . . . . Weapon 10 | 3 2 3 2 Energy Gun 1 | 1 . . . Energy Cannon . | . . . . Ballistic Gun 5 | 2 1 1 1 Ballistic Cannon 3 | . 1 1 1 Launcher 1 | . . 1 . Special Weapon . | . . . . Impact Weapon . | . . . . Slashing Weapon . | . . . . Piercing Weapon . | . . . . Special Melee Weapon . | . . . . Unidentified Prototypes . | . . . . Parts Lost 2 | . . . 2 Power . | . . . . Propulsion . | . . . . Utility 2 | . . . 2 Weapon . | . . . . Highest Loss Streak 2 | . . . 2 To Critical Strikes . | . . . . Average Slot Usage (%) 71 | . 66 81 75 Engine 11 | . 12 10 10 Leg 3 | . 5 . . Hover 23 | . 19 29 30 Protection 17 | . 17 21 15 Ballistic Gun 10 | . 10 10 10 Ballistic Cannon 4 | . 1 7 8 Peak Build Rating 15 | 4 14 15 15 Average Rating 9 | 2 7 12 12 On Entrance 6 | . 4 8 15 Naked Turns . | . . . . Heaviest Build 18 | 5 10 18 18 Greatest Support 20 | 20 20 20 20 Greatest Overweight (x) 2 | . 2 . . Average Overweight (x) . | . . . . Largest Inventory Capacity 2 | 2 2 2 2 Average Capacity 2 | 2 2 2 2 Most Carried 2 | 2 2 2 2 Average Carried 1 | . 1 1 1 Final Capacity 2 | 2 2 2 2 Final Carried 2 | . 2 2 1 Class Distribution -------------------- 100% | Mutant Dominant Class ---------------- Mutant | -10/Materials Mutant | -10/Mines Mutant | -10/Exiles Resources | -11 -10 -10 -10 ----------- Run | Yrd Mat Min Exi Matter Collected 831 | 35 485 249 62 Remotely . | . . . . Salvage Created 858 | . 609 245 4 Parts 44 | . 31 13 . Haulers Intercepted 1 | . 1 . . Recyclers Shooed 2 | . 2 . . Parts Field Recycled . | . . . . Retrieved Matter . | . . . . Parts Self-Destructed . | . . . . Prevented . | . . . . Kills | -11 -10 -10 -10 ------- Run | Yrd Mat Min Exi Combat Hostiles Destroyed 39 | . 10 24 5 Guns 10 | . 10 . . Cannons 6 | . . 5 1 AOE 23 | . . 19 4 Classes Destroyed 7 | . 5 2 . Worker 1 | . 1 . . Hauler 1 | . 1 . . Recycler 1 | . 1 . . Watcher 1 | . 1 . . Swarmer 2 | . . 2 . Grunt 13 | . 10 3 . Assembled 26 | . . 19 7 Thug 1 | . . 1 . Best Kill Streak 19 | . 3 19 5 Combat Bots Only 19 | . 2 19 5 Max Kills in Single Turn 5 | . 1 5 3 Gunslinging . | . . . . Exploded 5 | . . 5 3 Melee . | . . . . Uniques/NPCs Destroyed . | . . . . Combat | -11 -10 -10 -10 -------- Run | Yrd Mat Min Exi Hostile Shots Fired 188 | . 56 45 87 Missed 52 | . 15 17 20 Damage Taken 1907 | . 393 402 1112 Core 1398 | . 272 273 853 Absorbed by Shields . | . . . . Redirected to Core 1023 | . 200 235 588 Ignored by Resistances 511 | . 118 113 280 Core Remaining (%) 100 | 100 . . . Volleys Fired 132 | . 77 28 27 Largest 2 | . 1 2 2 Hottest 58 | . 35 55 58 Shots Fired 173 | . 77 45 51 Gun 113 | . 72 17 24 Cannon 46 | . 5 17 24 Launcher 14 | . . 11 3 Special . | . . . . Kinetic 159 | . 77 34 48 Thermal . | . . . . Explosive 14 | . . 11 3 Electromagnetic . | . . . . Robot Hit Streak 28 | . 28 14 16 Robot Miss Streak 3 | . 1 3 2 Penetration Max . | . . . . Secondary Targets . | . . . . Shots Hit Robots 145 | . 65 34 46 Core Hits 93 | . 29 45 19 Critical Kills 1 | . 1 . . Critical Parts Destroyed . | . . . . Critical Strikes 2 | . 1 1 . Destroy 1 | . 1 . . Blast 1 | . . 1 . Melee Attacks . | . . . . Impact . | . . . . Slashing . | . . . . Piercing . | . . . . Sneak Attacks . | . . . . Combat Hostiles . | . . . . Follow-up Attacks . | . . . . Damage Inflicted 3919 | . 836 1898 1185 Guns 1294 | . 783 204 307 Cannons 698 | . 53 259 386 Explosions 1838 | . . 1435 403 Melee . | . . . . Ramming 89 | . . . 89 Kinetic 1992 | . 836 463 693 Thermal . | . . . . Explosive 1838 | . . 1435 403 Electromagnetic . | . . . . Impact . | . . . . Slashing . | . . . . Piercing . | . . . . Highest Corruption 2 | . . . 2 Average Corruption 2 | . . . 2 Corruption Purged . | . . . . Corruption Blocked . | . . . . Overload Shots . | . . . . Overflow Damage 82 | . . 82 . Projectiles . | . . . . Explosions 82 | . . 82 . Melee . | . . . . Knockbacks 12 | . . 4 8 Impact . | . . . . Kinetic 12 | . . 4 8 Secondary . | . . . . Self-Inflicted Damage 86 | . . 47 39 Shots 2 | . . 2 . Rammed 21 | . . . 21 Targets Rammed 21 | . . . 21 Kicked . | . . . . Crushed . | . . . . Highest Temperature 275 | . 23 158 275 Average Temperature 84 | . 4 51 160 Received Heat Transfer 424 | . 324 100 . Siege Activations . | . . . . Robots Corrupted . | . . . . Combat Hostiles . | . . . . Parts Fried . | . . . . Impact Corruptions . | . . . . Robots Melted . | . . . . Combat Hostiles . | . . . . Parts Melted 1 | . . 1 . Heat Transferred . | . . . . Parts Sabotaged . | . . . . Parts Stolen . | . . . . Parts Stripped . | . . . . Power Chain Reactions . | . . . . Alert | -11 -10 -10 -10 ------- Run | Yrd Mat Min Exi Peak Influence 241 | . 192 241 . Initial 63 | . . 63 . Average 104 | . 73 189 . Maximum Alert Level 1 | . . 1 . Low Security (%) 84 | 100 100 48 . Level 1 15 | . . 51 . Level 2 . | . . . . Level 3 . | . . . . Level 4 . | . . . . Level 5 . | . . . . High Security . | . . . . Max Security . | . . . . Squads Dispatched 1 | . 1 . . Investigation 1 | . 1 . . Extermination . | . . . . Reinforcement . | . . . . Assault . | . . . . Garrison . | . . . . Intercept . | . . . . Searches Triggered . | . . . . Construction Impeded . | . . . . Haulers Reinforced . | . . . . Active Scanning Responses . | . . . . Cargo Convoy Interrupts . | . . . . Stealth | -11 -10 -10 -10 --------- Run | Yrd Mat Min Exi Distress Signals . | . . . . Communications Jammed . | . . . . Distress Signals . | . . . . Times Spotted 50 | . 18 26 6 Peak Tracking Total 17 | . 3 17 7 Tactical Retreats 4 | . 3 1 . Traps | -11 -10 -10 -10 ------- Run | Yrd Mat Min Exi Traps Triggered 1 | . 1 . . Indirectly . | . . . . Trap Hack Attempts . | . . . . Triggered . | . . . . Disarmed . | . . . . Reprogrammed . | . . . . Reused . | . . . . Traps Extracted . | . . . . Installed . | . . . . Triggered . | . . . . Machines | -11 -10 -10 -10 ---------- Run | Yrd Mat Min Exi Machines Disabled 4 | . . . 4 Max in Single Turn 2 | . . . 2 Machines Repaired . | . . . . Machines Dismantled . | . . . . Machines Sabotaged . | . . . . Overloaded Fab Kills . | . . . . Hacking | -11 -10 -10 -10 --------- Run | Yrd Mat Min Exi Machines Accessed 1 | . 1 . . Terminals . | . . . . Fabricators . | . . . . Repair Stations 1 | . 1 . . Recycling Units . | . . . . Scanalyzers . | . . . . Garrison Access . | . . . . Total Hacks 1 | . 1 . . Successful 1 | . 1 . . Failed . | . . . . Catastrophic . | . . . . Database Lockouts . | . . . . Manual . | . . . . Terminals . | . . . . Fabricators . | . . . . Repair Stations 1 | . 1 . . Recycling Units . | . . . . Scanalyzers . | . . . . Garrison Access . | . . . . Terminal Hacks . | . . . . Fabricator Hacks . | . . . . Repair Station Hacks 1 | . 1 . . Refit 1 | . 1 . . Recycling Unit Hacks . | . . . . Scanalyzer . | . . . . Garrison Access Hacks . | . . . . Unauthorized Hacks . | . . . . Terminals . | . . . . Fabricators . | . . . . Repair Stations . | . . . . Recycling Units . | . . . . Scanalyzers . | . . . . Garrison Access . | . . . . Data Cores Recovered . | . . . . Used . | . . . . Hacking Detections . | . . . . Full Trace Events . | . . . . Feedback Events . | . . . . Feedback Blocked . | . . . . Robot Schematics Acquired . | . . . . Robots Built . | . . . . Authchips . | . . . . Time . | . . . . Total Robot Build Rating . | . . . . Part Schematics Acquired . | . . . . Parts Built . | . . . . Authchips . | . . . . Time . | . . . . Total Part Build Rating . | . . . . Parts Repaired . | . . . . Time . | . . . . Parts Recycled . | . . . . Recycled Matter . | . . . . Retrieved Matter . | . . . . Retrieved Components . | . . . . Parts Scanalyzed . | . . . . Part Schematics Acquired . | . . . . Parts Damaged . | . . . . Bothacking | -11 -10 -10 -10 ------------ Run | Yrd Mat Min Exi Used RIF Installer . | . . . . Robots Hacked . | . . . . Non-combat . | . . . . Combat . | . . . . Robot Hacks Applied . | . . . . Relay Couplers Released . | . . . . Fabnet Peak Effective % . | . . . . Robots Rewired . | . . . . Allies Hacked . | . . . . Hacks Repelled . | . . . . Allies | -11 -10 -10 -10 -------- Run | Yrd Mat Min Exi Total Allies 3 | . . 3 . Largest Group 3 | . . 3 . Highest-Rated Group 40 | . . 40 . Highest-Rated Ally 16 | . . 16 . Total Orders . | . . . . Ally Attacks 11 | . . 11 . Total Damage 93 | . . 93 . Kills 1 | . . 1 . Allies Corrupted . | . . . . Allies Melted . | . . . . Intel | -11 -10 -10 -10 ------- Run | Yrd Mat Min Exi Robot Analysis Total . | . . . . Derelict Logs Recovered . | . . . . Drone Launches . | . . . . Drone Recoveries . | . . . . Exploration | -11 -10 -10 -10 ------------- Run | Yrd Mat Min Exi Turns Passed 1271 | 54 699 316 202 Spaces Moved 1177 | 37 670 344 126 Core 8 | 7 1 . . Treads . | . . . . Legs 123 | 30 93 . . Wheels . | . . . . Hover 1046 | . 576 344 126 Flight . | . . . . Fastest Speed 50 | 50 56 56 56 Average Speed 64 | 106 66 57 57 Slowest Speed 150 | 120 150 58 58 Overloaded Moves . | . . . . Propulsion Burnouts . | . . . . Robots Hopped . | . . . . Cave-ins Triggered . | . . . . Exploration Rate (%) 38 | 4 67 65 19 Regions Visited 3 Branch Regions 2 Pre-discovered Areas . | . . . . Known Exits Taken . | . . . . Unknown Exits Taken 3 | 1 1 1 . Scrap Searched 1 | . . 1 . Spaces Dug . | . . . . Terrain Destroyed 80 | . . 59 21 Melee . | . . . . Projectile . | . . . . AOE 80 | . . 59 21 Terrain Rammed . | . . . . Walls Destroyed . | . . . . Machines Disabled . | . . . . Actions | -11 -10 -10 -10 --------- Run | Yrd Mat Min Exi Total 1519 | 51 849 416 203 Wait 107 | 1 72 17 17 Move 1174 | 36 669 343 126 Hop . | . . . . Pick Up 15 | 6 5 4 . Fast Attach 10 | . 3 4 3 Attach 9 | 4 1 4 . Detach 3 | . 1 2 . Swap 7 | 2 2 1 2 Drop 19 | 2 8 5 4 Fire 132 | . 77 28 27 Melee . | . . . . Ram 20 | . . . 20 Kick . | . . . . Crush . | . . . . Escape Stasis . | . . . . Rewire . | . . . . Trap . | . . . . Miscellaneous 23 | . 11 8 4 Route ------- -11/Scrapyard -10/Materials (discovered 3 exits: [*Mat x2] / [*Min]) -10/Mines (discovered 2 exits: [*Mat] / [*Exi]) -10/Exiles (discovered 1 exit: [*Min]) History --------- Turn | Location | Event 1 | -11/Scrapyard | Upgraded with Propulsion slot (x1) 1 | -11/Scrapyard | Upgraded with Utility slot (x3) 3 | -11/Scrapyard | Discovered new exit (range 15) 55 | -11/Scrapyard | Entered Materials 294 | -10/Materials | Discovered new exit (range 7) 307 | -10/Materials | Build established: Mutant 402 | -10/Materials | Discovered new exit (range 9) 537 | -10/Materials | Discovered new exit (range 16) 754 | -10/Materials | Entered Mines 755 | -10/Mines | Assisted by bots powering up and referring to "LRC-V3" 756 | -10/Mines | Reached level 2 760 | -10/Mines | Upgraded with Propulsion slot (x1) 760 | -10/Mines | Upgraded with Weapon slot (x1) 771 | -10/Mines | Received a Rocket Launcher from a helpful Derelict 951 | -10/Mines | Discovered new exit (range 9) 956 | -10/Mines | Joined a pair of Derelicts in attacking an 0b10 outpost 999 | -10/Mines | Assembled infested the area 1034 | -10/Mines | Lost 3 allies 1047 | -10/Mines | Destroyed 19 combat bots 1067 | -10/Mines | Deemed a non-threat by the Exiles lab entrance 1067 | -10/Mines | Discovered new exit (range 5) 1070 | -10/Mines | Entered Exiles 1084 | -10/Exiles | Met 8R-AWN 1094 | -10/Exiles | Met EX-HEX 1113 | -10/Exiles | Attacked by the Exiles 1136 | -10/Exiles | Core integrity fell below 50% 1163 | -10/Exiles | Core integrity fell below 20% 1214 | -10/Exiles | Discovered new exit (range 14) 1272 | -10/Exiles | Core destroyed Last Messages --------------- Destabilizing: Core damaged (-30). Slammed into 8R-AWN. Lgt. Cannon broken. Destabilizing: Short circuit. Slammed into 8R-AWN. Penetrated by HV Slug. HV Slug penetrates Wall. Slammed into 8R-AWN. Backup Propulsion III broken. Destabilizing: Short circuit. Penetrated by HV Slug. HV Slug penetrates Wall. HV Slug penetrates Earth. Slammed into 8R-AWN. Destabilizing: System corrupted (+2). Slammed into 8R-AWN. Penetrated by HV Slug. HV Slug penetrates Wall. Slammed into 8R-AWN. Destabilizing: Core damaged (-40). Map ----- +----------------------------------------------------+ | ?????????????????????????????????????????????????? | | ?????????????????????????????????????????????????? | | ?????????????????????????????????????????????????? | | ?????????????????????????????????????????????????? | | ?????????????????????????????????????????????????? | | ?????????????????????????????????????????????????? | | ?????????????????????????????????????????????????? | | ?????????????????????????????????????????????????? | | ?????????????????????????????????????????????????? | | ?????????????????????????????????????????????????? | | ?????????????????????????????????????????????????? | | ???????????????????????????????###???????????????? | | ??????????????????????????????# #???????????????? | | ?????????????????????????????# #???????????????? | | ????????????????????????????? < ##??????????????? | | ????????????????????????????? ;???????????????? | | ????????????????????????????? #???????????????? | | ???????????????????????????## #????????????????? | | ??????????????##??????????## ##???????????????? | | ?????????????# ???????????# #???????????????? | | ??????#####?# #???????????# #???????????????? | | ?????##" ## #???????????## #???????????????? | | ?????#" # #?????????#### #?????????????????? | | ????##" "#??????????# # #?????????????????? | | #?### ###??????###;g ##?????????????????? | | #?# ########;; @ #??????????????????? | | ### #""""## ##??????????????????? | | ## ##??????????????????? | | !% ## #??????????????????? | | !% #### ##?????????????????? | | ! %""#?#"""""#;;; ###???????????????? | | !# ""##?######## ;;;# * ###?????????????? | | ######????????# ######### ##????????????? | | #????????????# #????????#;# #????????????? | | ?????????????##?????????##### #????????????? | | ????????????????????????????### #????????????? | | ?????????????????????????????#" ##???????????? | | ?????????????????????????????#### ###?????????? | | ????????????????????????????????# ##????????? | | ????????????????????????????????## ###??????? | | ?????????????????????????????????### #??????? | | ???????????????????????????????????# ##??????? | | ???????????????????????????????????## ##???????? | | ????????????????????????????????????#####????????? | | ?????????????????????????????????????????????????? | | ?????????????????????????????????????????????????? | | ?????????????????????????????????????????????????? | | ?????????????????????????????????????????????????? | | ?????????????????????????????????????????????????? | | ?????????????????????????????????????????????????? | +----------------------------------------------------+ Best States ------------- Heat Dissipation 25 Energy Generation 10 Energy Capacity 125 Matter Stores 300 Matter Capacity 300 Sight Range 16 Terrain Scan Density 10 Armor Coverage 380 Resistance: KI 20 Resistance: TH 20 Resistance: EX 20 Resistance: EM 20 Resistance: I 20 Resistance: S 20 Resistance: P 20 Evasion (%) 55 Offensive Hacking 10 Item Schematics ----------------- None Robot Schematics ------------------ None Fabricated ------------ Nothing Alien Tech Used ----------------- None Achievements -------------- Exterminator Challenges ------------ None RPGLIKE | -11 -10 -10 -10 --------- Run | Yrd Mat Min Exi Levels Raised 1 | . . 1 . XP Earned 6722 | 4000 1270 1252 200 XP Spent 5430 | 3650 . 1300 480 Upgrades 16 | 6 . 2 8 Propulsion Slot 2 | 1 . 1 . Utility Slot 3 | 3 . . . Weapon Slot 1 | . . 1 . Core Integrity 8 | . . . 8 Inventory Capacity 2 | 2 . . . Protomatter Created 151 | . 84 66 1 Integrity Restored 426 | . 252 99 75 Core 373 | . 252 46 75 Parts 53 | . . 53 . Protomatter Decayed 39 | . . 39 . Game ------ Seed CannonMomentumDeconstructor Manual? 0 Play Time 00:20:10 Cumulative 76.4 hours Start 2025.05.04 @ 13:07:37 End 2025.05.04 @ 13:27:15 Sessions 1 Manual Loads 0 Difficulty Adventurer Special Mode Winter2019/RPGLIKE Game No. 93 Rogue 1 Adventurer 86 Explorer 6 Win Type - Total 16 Types 3/0/7/0/1/0/4/1/0 Lore% 33 Gallery% 34 Achievement% 56 Wizard Run 0 Options --------- Layout 0 ASCII 0 Keyboard 0 Movement Mouse Keybinds 0 Fullscreen 2 Font 12/Smallcaps Map View 83x54 Zoom Use 0% Tactical HUD 0 Map Filters NONE Filters NONE Steam 1 RUN: 04b6af76-971b-4be8-8b91-befdbd544447